bitfinex-derivatives/quotes_ETHF0:USTF0_20251119
["timestamp","ask_amount","ask_price","bid_price","bid_amount"]
[1763512374618,0.1435,3092.5,3092.2,0.52417]
[1763512374619,0.2299,3092.3,3092.2,0.52417]
[1763512374813,0.75405,3092.3,3092.1,0.52418]
[1763512375120,3.2078,3092.6,3092.4,0.2433]
[1763512375316,3.2078,3092.6,3092.5,0.76742]
[1763512375819,3.7319,3092.6,3092.5,0.2433]
[1763512376035,0.52414,3092.4,3091.9,0.00609348]
[1763512376223,0.66762,3092.5,3092.2,0.52417]
[1763512376610,0.66762,3092.5,3092.3,0.52415]
[1763512377117,3.73191,3092.6,3092.4,0.52414]
[1763512377322,3.73191,3092.6,3092.5,0.76742]
[1763512377523,3.73191,3092.6,3092.5,0.2433]
[1763512377717,3.2078,3092.6,3092.5,0.76742]
[1763512378720,3.2078,3092.6,3092.5,0.2433]
[1763512378920,3.2078,3092.6,3092.5,0.76742]
[1763512379728,3.4422,3092.6,3092.3,0.52415]
[1763512380028,3.7319,3092.6,3092.5,0.77212]
[1763512380229,0.75856,3092.3,3092.1,3.2078]
[1763512380523,0.52417,3092.2,3092.1,3.97999]
[1763512380827,0.75857,3092.2,3092.1,3.73199]
[1763512381214,0.2344,3092.2,3092.1,3.73199]
[1763512381414,3.2078,3092.6,3092.5,0.77212]
[1763512381623,3.2078,3092.6,3092.1,3.2078]
[1763512381924,0.52414,3092.4,3092.1,3.2078]
[1763512382131,0.75857,3092.2,3092.1,3.73198]
[1763512382726,0.75857,3092.2,3092.1,3.2078]
[1763512383536,0.75857,3092.2,3092.1,3.73199]
[1763512383926,0.75857,3092.2,3092.1,3.2078]
[1763512384524,0.2344,3092.2,3092.1,3.73199]
[1763512384833,0.75857,3092.2,3092.1,3.97999]
[1763512385330,0.75857,3092.2,3092.1,3.4558]
[1763512386430,0.75857,3092.2,3092.1,0.248]
[1763512386625,0.1401,3092.5,3092.1,0.248]
[1763512386830,0.52414,3092.4,3092.3,0.52415]
[1763512387030,0.1401,3092.5,3092.3,0.52415]
[1763512387230,3.2078,3092.6,3092.5,0.248]
[1763512387429,0.52414,3092.4,3092.3,0.77215]
[1763512387924,0.52412,3092.5,3092.4,0.52413]
[1763512388123,0.2344,3092.5,3092.4,0.52413]
[1763512388331,3.2078,3092.6,3092.4,0.77213]
[1763512388527,0.52415,3092.3,3092.2,0.77216]
[1763512388731,0.52414,3092.4,3092.3,0.52415]
[1763512389027,0.52414,3092.4,3092.3,0.77215]
[1763512389347,0.3745,3092.0,3091.9,0.00609348]
[1763512389530,0.89871,3092.0,3091.9,0.00609348]
[1763512390033,0.3745,3092.0,3091.3,3.2078]
[1763512390332,0.75871,3091.4,3091.3,3.2078]
[1763512391231,0.76267118,3091.4,3091.3,3.21194462]
[1763512391732,0.23836118,3091.4,3091.3,3.21194462]
[1763512391934,1.2705395,3092.5,3091.6,0.248]
[1763512392233,3.73191,3092.6,3092.4,0.248]
[1763512392428,3.73191,3092.6,3091.9,3.2078]
[1763512392429,0.1401,3092.5,3091.9,3.2078]
[1763512392629,0.2344,3092.2,3092.1,0.52419]
[1763512392926,0.66422,3092.5,3092.2,0.52417]
[1763512393235,0.52414,3092.4,3092.3,0.248]
[1763512393530,0.00732524,3092.5,3092.4,0.77214]
[1763512394331,0.53144524,3092.5,3092.4,0.77214]
[1763512394728,0.53144524,3092.5,3092.4,0.248]
[1763512395138,0.53144524,3092.5,3092.4,0.77214]
[1763512395329,0.00732524,3092.5,3092.4,0.77214]
[1763512395728,0.53144524,3092.5,3092.4,0.248]
[1763512396031,0.53144524,3092.5,3091.9,1.74976329]
[1763512396032,0.89871,3092.0,3091.9,3.2078]
[1763512396433,0.1401,3092.0,3091.5,3.2078]
[1763512396637,0.75867,3091.6,3091.5,3.2078]
[1763512397630,0.52427,3091.6,3091.5,3.4558]
[1763512397937,0.1401,3092.0,3091.5,3.4558]
[1763512398135,0.52427,3091.6,3091.5,3.4558]
[1763512398730,0.1401,3092.0,3091.6,0.248]
[1763512398731,0.52426,3091.7,3091.6,0.248]
[1763512398930,0.1401,3092.0,3091.6,0.77227]
[1763512399136,0.52424,3091.8,3091.7,0.248]
[1763512399740,0.52427,3091.6,3091.5,3.4558]
[1763512399945,0.75867,3091.6,3091.5,3.2078]
[1763512400238,0.52427,3091.6,3091.5,3.2078]
[1763512400439,0.52427,3091.6,3091.5,3.98009]
[1763512400640,0.52426,3091.7,3091.6,0.248]
[1763512401840,4.48566474,3092.5,3091.5,3.2078]
[1763512401841,3.35522524,3092.5,3091.9,0.2248]
[1763512402035,0.52421,3092.0,3091.9,0.2248]
[1763512402233,0.52421,3092.0,3091.6,0.52427]
[1763512402234,0.52424,3091.8,3091.6,0.52427]
[1763512402433,3.35522524,3092.5,3091.9,0.2248]
[1763512402434,0.52419,3092.1,3091.9,0.2248]
[1763512402635,0.5242,3092.1,3091.9,0.74902]
[1763512402833,3.35522524,3092.5,3092.1,0.74897]
[1763512403030,0.52417,3092.3,3092.2,0.2248]
[1763512403236,0.52418,3092.2,3092.0,0.52419]
[1763512403438,3.35522524,3092.5,3091.6,1.1542491]
[1763512403439,0.52419,3092.1,3091.6,1.1542491]
[1763512403638,0.52417,3092.2,3091.9,3.2078]
[1763512403832,0.52417,3092.2,3092.0,0.52419]
[1763512404041,0.76091,3092.0,3091.9,3.2078]
[1763512404237,0.52422,3091.9,3091.7,0.52425]
[1763512404947,0.66871,3092.0,3091.8,0.74904]
[1763512405137,0.52419,3092.2,3092.0,0.5242]
[1763512405344,0.52421,3092.0,3091.9,0.2248]
[1763512405941,3.35522524,3092.5,3091.9,0.74902]
[1763512406141,0.52417,3092.3,3092.0,0.52421]
[1763512406447,3.35522524,3092.5,3091.9,0.52422]
[1763512406645,3.35522524,3092.5,3091.8,1.6784791]
[1763512406846,0.52421,3092.0,3091.9,0.2248]
[1763512407233,3.35522524,3092.5,3091.9,0.74902]
[1763512407447,0.5242,3092.1,3092.0,0.2248]
[1763512408540,3.35522524,3092.5,3092.1,0.75868]
[1763512408737,0.52417,3092.3,3092.2,0.2345]
[1763512410344,0.52415,3092.4,3092.3,0.2345]
[1763512410744,0.52415,3092.4,3092.3,0.75865]
[1763512410945,0.52415,3092.4,3092.3,0.2345]
[1763512411149,0.75595,3092.4,3092.3,0.2345]
[1763512411352,0.52415,3092.4,3092.3,0.2345]
[1763512411551,0.52415,3092.4,3092.1,1.6784291]
[1763512411552,0.52414,3092.4,3092.1,1.6784291]
[1763512411752,3.87935524,3092.5,3092.3,0.75865]
[1763512412151,0.52414,3092.4,3092.3,0.75865]
[1763512412454,3.87934524,3092.5,3092.4,0.2345]
[1763512412650,4.11114524,3092.5,3092.4,0.2345]
[1763512413053,0.52416,3092.3,3092.2,0.2345]
[1763512413247,0.52416,3092.3,3092.2,0.75867]
[1763512413448,0.75596,3092.3,3092.2,0.2345]
[1763512413645,0.75596,3092.3,3092.2,0.75867]
[1763512413944,3.73187,3092.9,3092.8,0.2345]
[1763512414145,0.52412,3092.5,3092.4,4.60407057]
[1763512414448,3.2078,3092.9,3092.4,0.75864]
[1763512414648,0.75594,3092.4,3092.3,1.16177057]
[1763512414857,0.75595,3092.3,3092.2,1.16177057]
[1763512415055,0.7587693,3092.3,3092.2,1.16177057]
[1763512415257,0.0028193,3092.3,3092.2,0.75867]
[1763512416056,0.7587693,3092.3,3092.2,1.16153953]
[1763512416354,0.7587693,3092.3,3092.2,1.68570953]
[1763512416555,0.7587693,3092.3,3092.2,1.16153953]
[1763512416955,0.2318,3092.2,3092.1,1.92022953]
[1763512417255,0.2318,3092.2,3092.1,0.75869]
[1763512417457,0.2318,3092.2,3092.1,1.9202218]
[1763512417748,0.2318,3092.2,3092.1,2.49906416]
[1763512417959,0.2318,3092.2,3092.1,0.75869]
[1763512418658,0.0028193,3092.3,3092.2,0.75867]
[1763512418856,0.0028193,3092.3,3092.2,2.50068411]
[1763512419550,0.0028193,3092.3,3092.2,0.75867]
[1763512420557,0.0028193,3092.3,3092.2,2.50068411]
[1763512420952,0.5269693,3092.3,3092.2,2.50068411]
[1763512421361,0.7587693,3092.3,3092.2,0.75867]
[1763512421555,0.7587693,3092.3,3092.2,1.92022904]
[1763512421759,0.5269693,3092.3,3092.2,1.92022904]
[1763512421959,0.5269693,3092.3,3092.2,1.39605904]
[1763512422253,0.7587693,3092.3,3092.2,1.16155904]
[1763512422454,0.75599,3092.1,3092.0,4.36935904]
[1763512422763,0.75599,3092.1,3092.0,3.2078]
[1763512424361,0.75604,3091.8,3091.7,1.16155904]
[1763512424552,0.2318,3091.7,3091.6,4.36935904]
[1763512424948,0.75606,3091.7,3091.6,4.36935904]
[1763512426155,0.75611,3091.4,3091.3,1.16570366]
[1763512426560,0.75611,3091.4,3091.3,0.00414462]
[1763512427156,0.75611,3091.4,3091.3,0.23864462]
[1763512427861,0.75611,3091.4,3091.3,0.00414462]
[1763512428163,3.2078,3091.8,3091.4,0.2345]
[1763512428361,0.1454,3091.5,3091.3,0.00414462]
[1763512428667,0.1454,3091.5,3091.3,0.52846462]
[1763512428668,0.75611,3091.4,3091.3,0.52846462]
[1763512428964,0.2318,3091.4,3091.3,0.76296462]
[1763512429165,0.1454,3091.5,3091.4,0.75881]
[1763512429365,0.6697,3091.5,3091.4,0.2345]
[1763512429566,0.1454,3091.5,3091.4,0.75881]
[1763512429766,0.66969,3091.5,3091.4,0.75881]
[1763512430262,0.52429,3091.5,3091.4,0.75881]
[1763512430566,0.52429,3091.5,3091.4,0.2345]
[1763512430767,0.75611,3091.4,3091.3,0.00414462]
[1763512431664,0.1454,3091.5,3091.4,0.75881]
[1763512431863,3.2078,3091.8,3091.7,0.2345]
[1763512432171,3.2078,3091.8,3091.3,0.00414462]
[1763512432172,0.2318,3091.6,3091.5,0.75879]
[1763512432660,0.2318,3091.6,3091.5,1.91957434]
[1763512433068,0.75607,3091.6,3091.5,1.39528434]
[1763512433369,0.75607,3091.6,3091.5,1.91957434]
[1763512433761,0.52426,3091.7,3091.6,0.75877]
[1763512434372,0.52426,3091.7,3091.6,3.96657]
[1763512435165,0.1454,3092.0,3091.8,0.75874]
[1763512435166,0.52424,3091.9,3091.8,0.75874]
[1763512435668,0.75604,3091.9,3091.8,0.2345]
[1763512435868,0.75604,3091.9,3091.8,0.75874]
[1763512437065,0.1454,3092.5,3091.9,0.75872]
[1763512437266,0.52421,3092.0,3091.9,0.2345]
[1763512437467,0.75404,3091.8,3091.6,3.2078]
[1763512437670,0.75404,3091.8,3091.7,0.2311]
[1763512437972,0.52418,3092.2,3092.0,0.5242]
[1763512438267,0.75398,3092.2,3092.1,0.52419]
[1763512438864,0.2298,3092.2,3092.1,0.52419]
[1763512439473,0.75397,3092.2,3092.1,0.52419]
[1763512440267,0.75399,3092.1,3092.0,3.2078]
[1763512440962,0.52419,3092.1,3092.0,3.73201]
[1763512441263,0.75399,3092.1,3092.0,3.73201]
[1763512441464,0.2326193,3092.3,3092.2,0.52417]
[1763512441669,0.0028193,3092.3,3092.2,0.52417]
[1763512443675,0.75399,3092.1,3092.0,3.2078]
[1763512444366,0.0028193,3092.3,3091.8,1.1604794]
[1763512444367,0.2298,3091.9,3091.8,1.1604794]
[1763512444569,0.75404,3091.8,3091.7,0.52425]
[1763512444765,0.67162,3092.0,3091.8,0.52423]
[1763512445167,0.2298,3091.7,3091.6,1.1604794]
[1763512445371,0.75407,3091.6,3091.5,1.1604794]
[1763512445576,0.75411,3091.4,3091.3,1.16462402]
[1763512445973,0.75411,3091.4,3091.3,1.16518783]
[1763512446672,0.75411,3091.4,3091.3,0.00414462]
[1763512447371,0.2298,3091.4,3091.3,0.52846462]
[1763512447571,0.1474,3091.5,3091.3,0.00414462]
[1763512447972,0.67171,3091.5,3091.4,0.52431]
[1763512448169,0.67171,3091.5,3091.3,0.52846462]
[1763512448467,0.75411,3091.4,3091.3,0.00414462]
[1763512448674,3.96191,3091.4,3091.3,0.00414462]
[1763512451377,3.2078,3091.4,3091.3,0.52846462]
[1763512451579,0.1474,3091.5,3091.4,0.52431]
[1763512451776,0.3772,3091.5,3091.4,0.52431]
[1763512451978,0.2298,3091.4,3091.3,0.00414462]
[1763512452176,0.75411,3091.4,3091.3,0.00414462]
[1763512453476,3.96191,3091.4,3091.3,0.00414462]
[1763512454787,3.4376,3091.4,3091.3,0.00414462]
[1763512455082,3.96191,3091.4,3091.3,0.00414462]
[1763512455674,0.75411,3091.4,3091.3,0.00414462]
[1763512456777,0.75411,3091.4,3091.3,0.52846462]
[1763512456976,0.75411,3091.4,3091.3,0.00414462]
[1763512457780,0.75411,3091.4,3091.3,0.52846462]
[1763512457781,0.52431,3091.4,3091.3,0.52846462]
[1763512458083,0.1474,3091.5,3091.4,0.52431]
[1763512458282,0.3772,3091.5,3091.4,0.52431]
[1763512458877,0.75411,3091.4,3091.3,0.00414462]
[1763512459573,0.2298,3091.4,3091.3,0.00414462]
[1763512459779,0.52431,3091.4,3091.3,0.00414462]
[1763512459987,0.75411,3091.4,3091.3,0.00414462]
[1763512462187,3.96191,3091.4,3091.3,0.00414462]
[1763512462784,3.96191,3091.4,3091.3,4.462e-05]
[1763512462987,0.76726,3091.1,3091.0,0.00484958]
[1763512463283,0.76734,3090.6,3090.5,3.69895884]
[1763512463583,0.76734,3090.6,3090.5,3.2078]
[1763512463879,0.76741,3090.2,3090.1,4.94981411]
[1763512464088,0.76741,3090.2,3090.1,3.2078]
[1763512464394,0.76741,3090.2,3090.1,3.21097884]
[1763512464587,0.76741,3090.2,3090.1,3.73550884]
[1763512464792,0.76741,3090.2,3090.1,3.21097884]
[1763512465088,0.2429,3090.2,3090.1,0.52770884]
[1763512465283,0.76738,3090.4,3090.2,0.52451]
[1763512465489,0.76741,3090.2,3090.1,0.52770884]
[1763512465785,0.2429,3090.2,3090.1,0.52770884]
[1763512466382,0.2429,3090.4,3090.3,0.52449]
[1763512467592,0.13944958,3090.5,3090.4,0.52448]
[1763512469682,0.13944958,3090.5,3090.1,3.21097884]
[1763512469885,0.2252,3090.2,3090.1,3.21097884]
[1763512470788,0.74971,3090.2,3090.1,3.73549884]
[1763512470993,0.74971,3090.2,3090.1,3.73550884]
[1763512471191,0.74971,3090.2,3090.1,3.21097884]
[1763512471899,0.5245,3090.3,3090.2,0.5245]
[1763512472187,0.7497,3090.3,3090.2,0.5245]
[1763512472994,0.7497,3090.3,3090.2,0.52451]
[1763512473596,0.5245,3090.3,3090.2,0.52451]
[1763512473896,0.52451,3090.2,3090.1,3.21097884]
[1763512474191,0.74971,3090.2,3090.1,3.21097884]
[1763512474804,0.2252,3090.2,3090.1,3.73550884]
[1763512475102,0.74971,3090.2,3090.1,3.73550884]
[1763512475299,0.74971,3090.2,3090.1,3.21097884]
[1763512475499,3.95751,3090.2,3090.1,0.00317884]
[1763512475890,0.74976,3089.9,3089.8,0.00484958]
[1763512476909,0.75396272,3089.9,3089.8,0.0085253]
[1763512477601,0.52467,3089.3,3089.2,0.52467]
[1763512477807,0.74987,3089.3,3089.1,5.47451411]
[1763512477994,0.74988,3089.2,3089.1,3.7325]
[1763512478600,0.2252,3089.2,3089.1,3.7325]
[1763512478903,0.52467,3089.3,3089.2,0.52467]
[1763512479409,0.74987,3089.3,3089.2,0.52467]
[1763512479909,0.52467,3089.3,3089.2,0.52467]
[1763512480311,0.52467,3089.3,3089.1,3.21006701]
[1763512480312,0.2252,3089.4,3089.3,0.52466]
[1763512480512,0.74985,3089.4,3089.3,0.52466]
[1763512480708,0.1398,3089.5,3089.1,3.73475701]
[1763512480910,0.52468,3089.2,3089.1,3.73475701]
[1763512481617,0.52465,3089.4,3089.3,0.52466]
[1763512481910,0.74987,3089.3,3089.2,0.52467]
[1763512482514,0.74988,3089.2,3089.1,3.73474701]
[1763512483314,0.74988,3089.2,3089.1,3.21006701]
[1763512484011,0.74988,3089.2,3089.1,3.73476701]
[1763512484211,0.1398,3089.5,3089.2,0.52468]
[1763512484411,0.2252,3089.3,3089.2,0.52468]
[1763512485000,0.74988,3089.2,3089.1,3.21006701]
[1763512486307,0.52466,3089.3,3089.2,0.52468]
[1763512486508,0.52466,3089.3,3089.1,3.21006701]
[1763512486509,0.74988,3089.2,3089.1,3.73476701]
[1763512486714,0.2252,3089.2,3089.1,3.73476701]
[1763512486905,0.74985,3089.4,3089.3,0.52466]
[1763512487106,0.74986,3089.3,3089.2,0.52468]
[1763512488116,0.74988,3089.2,3089.1,0.52695701]
[1763512488309,0.74988,3089.2,3089.1,0.00226701]
[1763512488610,0.74993,3088.9,3088.8,0.00484958]
[1763512488813,0.74995,3088.8,3088.7,3.2078]
[1763512489316,0.1398,3089.0,3088.1,0.52486]
[1763512489317,0.75002,3088.4,3088.3,3.2078]
[1763512489816,0.75002,3088.4,3088.3,3.44569309]
[1763512490117,0.75002,3088.4,3088.3,3.21199309]
[1763512490920,0.75002,3088.4,3088.3,3.44569309]
[1763512491211,0.75002,3088.4,3088.3,3.21199309]
[1763512491405,0.2252,3088.4,3088.3,3.21199309]
[1763512491605,0.75002,3088.4,3088.3,3.21199309]
[1763512492314,0.75002,3088.4,3088.3,3.44569309]
[1763512494823,0.75002,3088.4,3088.3,3.21199309]
[1763512495823,0.75002,3088.4,3088.3,3.44569309]
[1763512496722,0.75002,3088.4,3088.3,3.21199309]
[1763512496921,0.75002,3088.4,3088.3,0.23789309]
[1763512497122,0.75002,3088.4,3088.3,0.00419309]
[1763512497523,0.75002,3088.4,3088.3,0.23789309]
[1763512498425,0.75002,3088.4,3088.3,0.00419309]
[1763512499123,0.75002,3088.4,3088.3,0.22909309]
[1763512500823,0.52961958,3088.7,3088.6,0.2249]
[1763512501025,0.00484958,3088.7,3088.6,0.74968]
[1763512502222,0.76515,3089.4,3089.3,0.2249]
[1763512502517,0.2405,3089.2,3089.1,0.7496]
[1763512502931,0.76518,3089.2,3089.1,0.2249]
[1763512503726,0.76518,3089.2,3089.1,0.7496]
[1763512504431,0.52467,3089.3,3089.2,0.52468]
[1763512504631,0.00484958,3089.5,3089.4,0.74955]
[1763512505532,0.00484958,3089.5,3089.4,1.90819425]
[1763512505923,0.00484958,3089.5,3089.4,0.74955]
[1763512506734,0.00420272,3089.9,3089.8,0.74948]
[1763512507431,0.91293,3089.5,3089.4,1.15864425]
[1763512507732,3.2078,3089.6,3089.1,3.2078]
[1763512508026,0.76512,3089.6,3089.5,0.2249]
[1763512508227,0.76518,3089.2,3089.1,3.2078]
[1763512509533,0.2405,3089.2,3089.1,3.9574]
[1763512510237,0.76518,3089.2,3089.1,3.4327]
[1763512510428,0.76522,3089.0,3088.9,0.2249]
[1763512510626,0.52469,3089.2,3088.9,0.74963]
[1763512510827,0.5247,3089.1,3089.0,0.2249]
[1763512511024,0.7652,3089.1,3089.0,0.2249]
[1763512511434,0.2405,3088.9,3088.8,0.22974958]
[1763512511633,0.76523,3088.9,3088.8,0.22974958]
[1763512511932,0.5247,3089.1,3089.0,0.3682]
[1763512512328,0.5247,3089.1,3089.0,0.2249]
[1763512512329,0.7652,3089.1,3089.0,0.2249]
[1763512518139,0.1478,3089.5,3088.8,0.22974958]
[1763512518140,0.2405,3088.9,3088.8,0.22974958]
[1763512518334,0.76523,3088.9,3088.8,0.22974958]
[1763512518536,0.76522,3089.0,3088.9,0.74963]
[1763512518843,0.76522,3089.0,3088.9,1.87773706]
[1763512519037,0.91302,3089.0,3088.9,1.35300706]
[1763512519239,0.76523,3088.9,3088.8,0.00484958]
[1763512519443,0.76527,3088.7,3088.6,0.99165042]
[1763512519642,0.57522,3088.4,3088.3,0.00419309]
[1763512521740,6.57522,3088.4,3088.3,0.00419309]
[1763512521936,0.57527,3088.1,3088.0,0.00484958]
[1763512522235,3.73267,3088.1,3088.0,0.1367]
[1763512522948,3.2078,3088.6,3088.5,0.1367]
[1763512523147,3.73258,3088.6,3088.5,0.3779]
[1763512523347,3.73258,3088.6,3088.5,0.1367]
[1763512523654,0.52487,3088.2,3088.0,0.14049963]
[1763512523836,3.2078,3088.6,3088.2,0.2412]
[1763512524041,0.52482,3088.4,3088.3,0.2412]
[1763512524547,3.2078,3088.6,3088.5,0.3779]
[1763512524849,3.73258,3088.6,3088.5,0.1367]
[1763512525449,3.73258,3088.6,3088.5,0.3779]
[1763512526745,3.2078,3088.6,3088.5,0.3779]
[1763512526944,3.2078,3088.6,3088.5,0.9027]
[1763512527452,3.73258,3088.6,3088.5,0.3779]
[1763512528149,3.73258,3088.6,3088.5,0.1367]
[1763512529445,0.52487,3088.1,3088.0,0.14049963]
[1763512529645,3.73267,3088.1,3088.0,0.38509963]
[1763512531155,3.2078,3088.1,3088.0,0.90997963]
[1763512531356,3.73258,3088.6,3088.5,0.3839]
[1763512532157,3.2078,3089.0,3088.9,0.2446]
[1763512532358,3.73251,3089.0,3088.9,0.2446]
[1763512533154,3.2078,3089.0,3088.5,0.1393]
[1763512533461,0.52478,3088.6,3088.5,0.3839]
[1763512533856,0.52478,3088.6,3088.5,0.1393]
[1763512533857,3.73258,3088.6,3088.5,0.1393]
[1763512535460,3.2078,3088.6,3088.5,0.9087]
[1763512535658,3.73252,3089.0,3088.9,0.2446]
[1763512536353,0.52477,3088.7,3088.6,0.52478]
[1763512536555,0.52477,3088.7,3088.6,0.2446]
[1763512536754,0.52477,3088.7,3088.6,0.76938]
[1763512538458,0.52477,3088.7,3088.6,0.2446]
[1763512538865,0.52477,3088.7,3088.6,0.76938]
[1763512539365,0.52477,3088.7,3088.6,0.2446]
[1763512539967,0.52478,3088.6,3088.5,0.1393]
[1763512540264,0.52478,3088.6,3088.5,0.3839]
[1763512540566,0.52485,3088.2,3088.1,0.78564425]
[1763512540865,0.52485,3088.2,3087.5,0.1367]
[1763512540866,0.52495,3087.6,3087.5,0.1367]
[1763512541070,3.73275,3087.6,3087.5,0.1367]
[1763512541359,3.73275,3087.6,3087.5,0.3813]
[1763512541565,0.52495,3087.6,3087.5,0.3813]
[1763512541757,0.52807861,3087.6,3087.5,0.14056616]
[1763512542767,0.00312861,3087.6,3087.5,0.38516616]
[1763512543062,0.00312861,3087.6,3087.5,0.91013616]
[1763512543267,0.52807861,3087.6,3087.5,0.38516616]
[1763512543566,0.00312861,3087.6,3087.5,0.91013616]
[1763512544265,0.52807861,3087.6,3087.5,0.91013616]
[1763512544665,0.00312861,3087.6,3087.5,0.91013616]
[1763512544861,0.52807861,3087.6,3087.5,0.38516616]
[1763512545160,0.52807861,3087.6,3087.5,0.14056616]
[1763512545963,0.00312861,3087.6,3087.5,0.14056616]
[1763512546357,0.52807861,3087.6,3087.5,0.14056616]
[1763512546967,0.52807861,3087.6,3087.5,0.38516616]
[1763512547364,0.00485775,3087.9,3087.8,0.2446]
[1763512547563,0.00485775,3087.9,3087.8,0.76952]
[1763512548065,0.52495,3087.6,3087.5,0.14056616]
[1763512548265,3.73275,3087.6,3087.5,0.14056616]
[1763512548469,3.73555642,3087.6,3087.5,0.14056616]
[1763512549364,0.00485775,3087.9,3087.8,0.76952]
[1763512549569,0.52485,3088.3,3088.2,0.2446]
[1763512550273,0.52482,3088.4,3088.3,0.2446]
[1763512550458,0.00341578,3088.4,3088.3,0.2446]
[1763512550860,0.00341578,3088.4,3088.3,0.76943]
[1763512551166,0.00341578,3088.4,3088.3,3.97723]
[1763512552168,3.2078,3089.0,3088.6,0.2446]
[1763512552464,3.2078,3089.2,3089.1,0.2446]
[1763512552862,3.2078,3089.6,3089.5,0.1393]
[1763512553263,3.73585379,3089.6,3089.5,0.1393]
[1763512554170,3.73585379,3089.6,3089.2,0.00485775]
[1763512554171,0.52466,3089.3,3089.2,0.00485775]
[1763512555373,3.21124379,3089.6,3089.5,0.1393]
[1763512555675,3.73585379,3089.6,3089.5,0.1393]
[1763512555875,3.21124379,3089.6,3089.5,0.3839]
[1763512556074,0.00485775,3089.9,3089.8,0.2446]
[1763512557178,0.00827644,3089.9,3089.8,0.24824287]
[1763512558279,3.2078,3090.6,3090.5,0.3716]
[1763512558478,2.96921732,3090.6,3090.5,0.3716]
[1763512558780,3.2078,3091.2,3091.1,0.2364]
[1763512559373,3.21123367,3091.2,3091.1,0.2364]
[1763512559570,0.00343367,3091.2,3091.1,0.2364]
[1763512559872,0.00485775,3091.5,3091.4,0.2364]
[1763512560072,0.00485775,3091.5,3091.4,3.4442]
[1763512560474,3.73199,3092.1,3092.0,0.1352]
[1763512560673,0.52427,3091.6,3091.5,0.1352]
[1763512560874,0.00353778,3091.6,3091.5,0.37538953]
[1763512562478,3.2078,3093.1,3092.5,0.1352]
[1763512562677,0.52407,3092.9,3092.8,0.2364]
[1763512562983,0.52409,3092.7,3092.5,0.1352]
[1763512563174,3.73183,3093.1,3093.0,0.1352]
[1763512563576,3.73443729,3093.1,3093.0,0.1352]
[1763512565179,0.52663729,3093.1,3093.0,0.1352]
[1763512567988,0.52407,3092.8,3092.7,0.00484943]
[1763512568487,0.52419,3092.1,3092.0,3.343]
[1763512570283,3.73189,3092.7,3092.6,0.2364]
[1763512570590,0.52419,3092.1,3092.0,3.343]
[1763512570889,0.52417,3092.2,3092.0,3.5794]
[1763512571087,3.73189,3092.7,3092.6,0.2364]
[1763512571688,0.5241,3092.6,3092.5,0.1352]
[1763512571889,0.52419,3092.1,3092.0,3.343]
[1763512573896,0.52419,3092.1,3092.0,3.5794]
[1763512574596,0.52417,3092.3,3092.2,0.2364]
[1763512575093,3.73189,3092.7,3092.6,0.2364]
[1763512575494,0.5241,3092.6,3092.5,0.1352]
[1763512576793,3.2078,3092.7,3092.0,3.343]
[1763512576794,0.52419,3092.1,3092.0,3.343]
[1763512577192,3.73199,3092.1,3092.0,0.1352]
[1763512577392,0.52424,3091.8,3091.7,0.00484943]
[1763512579195,5.0038,3092.1,3091.1,3.2078]
[1763512579196,0.52434,3091.2,3091.1,3.2078]
[1763512580096,0.52434,3091.2,3091.1,3.21104111]
[1763512580296,0.52434,3091.2,3091.1,3.44744111]
[1763512580598,3.21264943,3091.5,3091.1,3.21104111]
[1763512580801,0.52431,3091.4,3091.3,0.2364]
[1763512580996,0.52913943,3091.5,3091.4,0.2364]
[1763512581388,0.00484943,3091.5,3091.4,0.76071]
[1763512581593,4.943e-05,3091.5,3091.4,0.2364]
[1763512581788,4.943e-05,3091.5,3091.4,0.76071]
[1763512582296,4.943e-05,3091.5,3091.4,0.2364]
[1763512582497,4.943e-05,3091.5,3091.4,0.76071]
[1763512582795,0.5242,3092.1,3092.0,0.4182]
[1763512584000,0.5242,3092.1,3092.0,0.1599]
[1763512584296,0.5242,3092.1,3092.0,0.4182]
[1763512586196,3.21264943,3092.4,3092.0,3.3677]
[1763512586402,0.00484943,3092.4,3092.3,0.2583]
[1763512586593,4.943e-05,3092.4,3092.3,0.2583]
[1763512587001,4.943e-05,3092.4,3092.3,0.78245]
[1763512587301,4.943e-05,3092.4,3092.3,0.2583]
[1763512587698,4.943e-05,3092.4,3092.3,0.78245]
[1763512588003,0.52405,3093.0,3092.9,0.2583]
[1763512588302,0.52662729,3093.1,3093.0,0.3836]
[1763512588499,0.00260729,3093.1,3093.0,0.3836]
[1763512588699,0.52391,3093.8,3093.5,0.146]
[1763512588905,0.52385,3094.1,3094.0,0.146]
[1763512589106,1.24568511,3094.1,3094.0,0.3836]
[1763512589297,0.52385,3094.1,3094.0,0.3836]
[1763512590502,0.52383,3094.2,3094.0,0.3836]
[1763512590704,0.52383,3094.2,3094.1,0.2376]
[1763512593799,0.52742934,3094.2,3094.1,0.0030353]
[1763512595001,0.52742934,3094.2,3094.1,0.2406353]
[1763512596801,0.52742934,3094.2,3094.1,0.0030353]
[1763512600811,3.73522934,3094.2,3094.1,0.0030353]
[1763512601008,0.52388,3093.9,3093.8,0.00484943]
[1763512602116,0.52388,3093.9,3093.8,0.00808889]
[1763512605215,3.21139934,3094.2,3093.5,3.3538]
[1763512605216,0.52393,3093.6,3093.5,3.3538]
[1763512605718,0.52393,3093.6,3093.5,3.5914]
[1763512606012,0.52385,3094.1,3094.0,0.146]
[1763512606218,0.52385,3094.1,3094.0,0.3836]
[1763512606709,0.52385,3094.1,3094.0,0.146]
[1763512608217,0.52393,3093.6,3093.5,0.14894156]
[1763512608520,0.52393,3093.6,3093.5,3.59434156]
[1763512610122,0.52393,3093.6,3093.5,0.38654156]
[1763512610321,0.52393,3093.6,3093.5,3.59434156]
[1763512611710,0.52392,3093.7,3093.5,3.59434156]
[1763512611914,0.52392,3093.7,3093.6,0.2376]